bitfinex/quotes_SOLUSD_20220311
["timestamp","ask_amount","ask_price","bid_price","bid_amount"]
[1647016239292,188.56397002,81.078,80.981,24.40249179]
[1647016239690,22.9337,81.077,80.981,24.40249179]
[1647016239892,22.9337,81.077,80.981,51.92565699]
[1647016240294,22.9337,81.077,80.99,18.5095]
[1647016240694,123.5,81.076,80.99,18.5095]
[1647016240897,123.5,81.076,80.981,24.40249179]
[1647016241293,123.5,81.076,80.99,18.5106]
[1647016244501,6.17,81.075,80.99,18.5106]
[1647016244699,22.9337,81.077,80.99,18.5106]
[1647016245200,22.9337,81.077,80.991,30.6436852]
[1647016245401,22.9337,81.077,81.01,18.5065]
[1647016245603,22.9337,81.077,81.011,1.79097545]
[1647016246203,22.9337,81.077,81.011,1.75435374]
[1647016247006,6.168,81.115,81.02,18.5044]
[1647016247206,45.9867,81.117,81.021,0.25]
[1647016247405,45.9867,81.117,81.022,5.79315066]
[1647016247602,45.9867,81.117,81.022,36.43683586]
[1647016248002,65.54620635,81.116,81.022,36.43683586]
[1647016248404,123.5,81.109,81.02,14.42]
[1647016248608,123.5,81.107,80.991,30.6436852]
[1647016248805,123.5,81.105,80.991,30.6436852]
[1647016249003,1.63140746,81.102,80.991,30.6436852]
[1647016249203,1.63140746,81.101,80.991,30.6436852]
[1647016249408,1.63140746,81.098,81.0,18.5092]
[1647016249605,123.5,81.096,81.001,21.2803964]
[1647016249904,123.5,81.096,81.001,51.9240816]
[1647016250108,123.5,81.094,81.002,30.6436852]
[1647016250305,1.63140746,81.092,81.001,21.2803964]
[1647016250505,1.63140746,81.091,81.01,18.5083]
[1647016250708,197.61,81.088,81.001,21.2803964]
[1647016250906,49.5375415,81.083,81.001,21.2803964]
[1647016251109,46.40733149,81.068,81.001,21.2803964]
[1647016251305,169.90733149,81.068,80.99,30.6436852]
[1647016251508,123.5,81.066,80.99,30.6436852]
[1647016251906,24.8478,81.067,81.0,18.5107]
[1647016252306,24.8478,81.067,81.001,55.11367737]
[1647016252706,24.8478,81.067,81.002,30.6436852]
[1647016252906,24.8478,81.067,81.01,18.508]
[1647016255511,123.5,81.066,81.0,18.5108]
[1647016255709,123.5,81.066,80.98,43.3297]
[1647016255908,123.5,81.066,80.98,18.8958]
[1647016256112,1.63140746,81.064,80.98,18.8958]
[1647016256312,1.63140746,81.065,80.984,22.13723293]
[1647016256508,1.63140746,81.065,80.99,18.5134]
[1647016256912,1.63140746,81.065,80.99,18.0134]
[1647016257110,1.63140746,81.064,80.99,18.0134]
[1647016257711,1.63140746,81.063,80.99,18.0134]
[1647016259014,1.63140746,81.062,80.99,18.0134]
[1647016259914,123.5,81.059,80.99,18.0134]
[1647016260515,1.63140746,81.06,80.99,18.0134]
[1647016261213,1.63140746,81.064,81.01,18.5084]
[1647016261715,1.63140746,81.064,81.011,3.04447957]
[1647016262714,149.97920746,81.067,81.011,3.04447957]
[1647016262916,1.63140746,81.063,81.011,3.04447957]
[1647016263316,1.63140746,81.062,81.011,3.04447957]
[1647016263916,1.63140746,81.062,81.0,18.5103]
[1647016264218,1.63140746,81.064,81.0,18.5103]
[1647016264415,1.63140746,81.062,81.0,18.5103]
[1647016264615,1.63140746,81.063,81.0,18.5103]
[1647016264837,1.63140746,81.064,81.0,18.5103]
[1647016265022,1.63140746,81.065,81.0,18.5103]
[1647016265316,1.63140746,81.062,81.0,18.5103]
[1647016265516,1.63140746,81.064,81.0,18.5103]
[1647016265716,123.5,81.059,80.992,3.04447957]
[1647016265917,125.13140746,81.059,80.992,3.04447957]
[1647016266116,1.63140746,81.058,80.992,3.04447957]
[1647016266318,1.63140746,81.057,80.992,3.04447957]
[1647016266520,1.63140746,81.055,80.992,3.04447957]
[1647016266721,123.5,81.053,80.992,3.04447957]
[1647016267116,56.57449992,81.054,80.992,3.04447957]
[1647016267720,54.94309246,81.054,80.992,3.04447957]
[1647016267917,54.94309246,81.054,80.987,22.15213545]
[1647016268119,123.5,81.053,80.988,6.171]
[1647016268418,123.5,81.053,80.987,22.15213545]
[1647016268419,125.13140746,81.049,80.974,6.171]
[1647016268617,125.13140746,81.049,80.965,3.04447957]
[1647016268618,125.13140746,81.049,80.973,6.171]
[1647016268820,1.63140746,81.048,80.973,6.171]
[1647016269219,1.63140746,81.048,80.974,18.72423837]
[1647016269418,1.63140746,81.049,80.975,6.172]
[1647016270219,125.13140746,81.049,80.98,18.5165]
[1647016270419,123.5,81.049,80.98,18.5165]
[1647016271124,18.5146,81.05,80.98,18.5165]
[1647016271321,20.14600746,81.05,80.98,18.5165]
[1647016271724,18.5146,81.05,80.98,18.5165]
[1647016271920,123.5,81.049,80.98,18.5165]
[1647016273324,18.5146,81.05,80.98,18.5165]
[1647016273522,26.57130746,81.053,80.98,18.5165]
[1647016273723,24.9399,81.053,80.981,6.171]
[1647016273924,24.9399,81.053,81.0,18.5106]
[1647016274123,24.9399,81.053,81.001,7.43260716]
[1647016274525,24.9399,81.053,80.991,6.17]
[1647016274932,24.9399,81.053,81.01,18.511]
[1647016275533,24.9399,81.053,81.011,24.12454349]
[1647016275733,1.63140746,81.074,81.011,24.12454349]
[1647016275935,1.63140746,81.074,81.011,27.16902306]
[1647016276232,23.3536,81.081,81.02,18.5058]
[1647016276636,64.82863256,81.08,81.02,18.5058]
[1647016277034,123.5,81.079,81.02,18.5058]
[1647016278638,123.5,81.079,81.021,24.99968018]
[1647016279037,123.5,81.079,81.03,18.5067]
[1647016280464,64.82863256,81.08,81.03,18.5067]
[1647016280858,64.82863256,81.08,81.03,18.0067]
[1647016281261,23.3536,81.081,81.03,18.0067]
[1647016281761,1.63140746,81.097,81.05,18.4949]
[1647016281967,135.81646524,81.17,81.05,18.4949]
[1647016281968,1.63140746,81.11,81.05,18.4949]
[1647016282162,24.8037,81.146,81.03,42.20756503]
[1647016282163,1.63140746,81.125,81.051,9.21047957]
[1647016282461,63.21835068,81.132,81.052,4.20164492]
[1647016282664,61.58694322,81.132,81.053,6.165]
[1647016282861,61.58694322,81.132,81.06,18.4882]
[1647016283061,61.58694322,81.132,81.061,6.165]
[1647016283463,61.58694322,81.132,81.061,3.04447957]
[1647016283662,61.58694322,81.132,81.062,9.20947957]
[1647016284064,22.83,81.145,81.063,3.04447957]
[1647016284264,22.83,81.145,81.064,6.164]
[1647016284467,22.83,81.145,81.08,18.4912]
[1647016285062,50.68492508,81.144,81.081,20.36891933]
[1647016285463,50.68492508,81.144,81.09,18.4906]
[1647016285765,6.164,81.153,81.09,18.4906]
[1647016285965,1.63140746,81.174,81.091,9.20747957]
[1647016286166,1.63140746,81.177,81.091,9.20747957]
[1647016286365,1.63140746,81.183,81.092,3.04447957]
[1647016286563,26.68020262,81.173,81.094,5.7879262]
[1647016286763,26.68020262,81.173,81.1,18.4794]
[1647016287067,49.7662321,81.175,81.101,11.57013936]
[1647016287264,49.7662321,81.175,81.101,14.61461893]
[1647016287467,49.7662321,81.175,81.102,3.04447957]
[1647016287662,49.7662321,81.175,81.103,6.162]
[1647016288063,123.5,81.174,81.104,3.04447957]
[1647016288264,123.5,81.174,81.083,6.162]
[1647016288665,123.5,81.174,81.083,9.20647957]
[1647016289167,123.5,81.172,81.1,23.86738106]
[1647016289667,6.162,81.171,81.1,23.86738106]
[1647016290265,6.162,81.171,81.1,18.4904]
[1647016290470,123.5,81.169,81.09,18.4923]
[1647016290664,123.5,81.167,81.084,3.04447957]
[1647016290866,6.163,81.166,81.063,6.163]
[1647016291268,123.5,81.167,81.064,18.50895161]
[1647016291468,123.5,81.167,81.065,6.164]
[1647016291669,123.5,81.167,81.081,7.64789392]
[1647016292469,123.5,81.163,81.07,61.638]
[1647016292668,123.5,81.157,81.08,18.4946]
[1647016293072,6.163,81.156,81.08,18.4946]
[1647016293370,74.11,81.148,81.08,18.4946]
[1647016293669,123.5,81.135,81.07,18.4964]
[1647016294568,74.11,81.132,81.065,6.164]
[1647016294774,123.5,81.123,81.063,0.03]
[1647016294969,123.5,81.117,81.063,0.03]
[1647016295175,123.5,81.101,81.063,0.03]
[1647016295369,123.5,81.097,81.063,0.03]
[1647016295771,123.5,81.089,81.063,0.03]
[1647016295970,123.5,81.087,81.063,0.03]
[1647016296573,123.5,81.085,81.063,0.03]
[1647016297376,47.6392,81.086,81.063,0.03]
[1647016297377,123.5,81.079,81.063,0.03]
[1647016298474,47.6392,81.086,81.063,0.03]
[1647016298475,123.5,81.085,81.063,0.03]
[1647016301381,47.6392,81.086,81.063,0.03]
[1647016302481,47.6392,81.086,81.02,61.6794]
[1647016302482,47.6392,81.086,81.03,0.03]
[1647016302878,47.6392,81.086,81.034,3.04447957]
[1647016303481,47.1392,81.086,81.034,3.04447957]
[1647016303689,46.6392,81.086,81.035,19.34837068]
[1647016303882,46.6392,81.086,81.04,18.5047]
[1647016304082,46.6392,81.086,81.03,0.03]
[1647016304682,123.5,81.085,81.03,0.03]
[1647016306205,123.5,81.085,81.03,18.5363]
[1647016306406,123.5,81.085,81.03,23.57190611]
[1647016307207,123.5,81.085,81.03,18.5363]
[1647016308006,46.6392,81.086,81.03,18.5363]
[1647016308207,46.6392,81.086,81.031,20.29339317]
[1647016308407,46.6392,81.086,81.04,18.5034]
[1647016309207,123.5,81.085,81.04,18.5034]
[1647016309410,123.5,81.085,81.03,0.03]
[1647016310313,18.5132,81.07,81.03,0.03]
[1647016310516,147.4725,81.069,81.03,0.03]
[1647016311110,123.5,81.067,81.03,0.03]
[1647016311911,123.5,81.057,81.03,0.03]
[1647016312112,123.5,81.051,81.03,0.03]
[1647016312311,74.11,81.04,80.937,12.87443793]
[1647016312510,123.5,81.027,80.943,18.7893]
[1647016312710,38.2815,81.05,80.956,24.6360402]
[1647016312711,123.5,81.025,80.956,24.6360402]
[1647016312918,123.5,81.019,80.956,24.6360402]
[1647016313213,123.5,81.019,80.941,3.04447957]
[1647016313416,123.5,81.019,80.936,6.4386218]
[1647016313619,123.5,81.015,80.936,6.4386218]
[1647016313819,74.11,81.004,80.936,6.4386218]
[1647016314020,74.11,80.988,80.921,3.04447957]
[1647016314219,123.5,80.985,80.928,22.97758277]
[1647016314618,123.5,81.018,80.928,22.97758277]
[1647016314817,123.5,81.018,80.929,30.8320446]
[1647016315218,123.5,81.016,80.93,30.8320446]
[1647016315421,123.5,81.016,80.93,49.3614446]
[1647016315718,6.174,81.015,80.931,3.04447957]
[1647016316117,123.5,81.009,80.931,3.04447957]
[1647016316319,6.175,81.008,80.941,3.17926276]
[1647016316522,123.5,81.009,80.941,3.17926276]
[1647016316718,123.5,81.009,80.931,3.04447957]
[1647016317119,123.5,81.016,80.931,3.04447957]
[1647016317521,123.5,80.999,80.94,18.5266]
[1647016317719,123.5,80.997,80.94,18.5266]
[1647016318519,64.54489756,80.998,80.94,18.5266]
[1647016318720,64.54489756,80.998,80.941,3.04447957]
[1647016318924,6.175,81.037,80.95,18.5133]
[1647016319123,20.594,81.06,80.95,18.5133]
[1647016319324,20.594,81.06,80.951,3.04447957]
[1647016319524,18.5236,81.02,80.951,3.04447957]
[1647016319724,123.5,81.018,80.951,3.04447957]
[1647016319925,123.5,81.016,80.946,7.55997783]
[1647016320127,80.284,81.015,80.928,3.04447957]
[1647016320325,197.61,81.008,80.928,3.04447957]
[1647016320528,6.175,81.007,80.918,3.04447957]
[1647016320725,123.5,80.989,80.918,3.04447957]
[1647016321127,123.5,80.987,80.919,23.97320984]
[1647016321526,123.5,80.987,80.92,3.04447957]
[1647016322125,123.5,80.987,80.92,21.57527957]
[1647016322523,123.5,80.987,80.921,3.04447957]
[1647016323827,123.5,80.987,80.93,18.5274]
[1647016324232,123.5,80.987,80.931,3.04447957]
[1647016324830,123.5,80.987,80.932,2.18363569]
[1647016325030,123.5,80.987,80.931,3.04447957]
[1647016326031,123.5,80.987,80.932,25.14396388]
[1647016326234,123.5,80.987,80.94,18.527]
[1647016330137,123.5,80.987,80.93,18.5299]
[1647016330340,123.5,80.985,80.92,3.04447957]
[1647016330542,123.5,80.985,80.909,3.04447957]
[1647016330852,123.5,80.977,80.891,23.1552]
[1647016331337,123.5,80.959,80.891,23.1552]
[1647016331538,123.5,80.957,80.884,41.83617257]
[1647016331937,123.5,80.957,80.88,3.04447957]
[1647016332140,146.9427,80.957,80.88,64.83317957]
[1647016332367,146.9427,80.957,80.9,18.537]
[1647016332766,197.61,80.949,80.88,3.04447957]
[1647016332966,123.5,80.949,80.88,3.04447957]
[1647016333164,123.5,80.956,80.88,30.8320446]
[1647016333368,123.5,80.956,80.88,49.3738446]
[1647016333564,123.5,80.956,80.881,3.04447957]
[1647016333965,123.5,80.956,80.882,27.78756503]
[1647016334164,123.5,80.956,80.89,61.7819]
[1647016334366,123.5,80.956,80.891,1.79109384]
[1647016334564,123.5,80.956,80.891,4.83557341]
[1647016334766,123.5,80.949,80.891,3.04447957]
[1647016334965,123.5,80.949,80.84,14.42]
[1647016334966,123.5,80.949,80.87,3.04447957]
[1647016335165,123.5,80.947,80.87,3.04447957]
[1647016335365,123.5,80.937,80.87,3.04447957]
[1647016335767,123.5,80.929,80.871,22.00175385]
[1647016336767,123.5,80.934,80.88,18.5414]
[1647016337167,123.5,80.934,80.872,3.04447957]
[1647016337768,18.5432,80.93,80.872,3.04447957]
[1647016337969,123.5,80.927,80.872,3.04447957]
[1647016338171,123.5,80.927,80.851,6.0]
[1647016338369,123.5,80.925,80.851,6.0]
[1647016338577,28.9402,80.926,80.851,6.0]
[1647016338578,184.99083582,80.923,80.851,6.0]
[1647016338771,123.5,80.917,80.851,6.0]
[1647016338972,123.5,80.899,80.851,6.0]
[1647016339770,123.5,80.897,80.832,3.04447957]
[1647016339973,123.5,80.889,80.811,131.1748]
[1647016340172,123.5,80.885,80.811,113.0]
[1647016340372,123.5,80.877,80.804,3.04447957]
[1647016341175,123.5,80.877,80.785,12.8748408]
[1647016341176,123.5,80.869,80.79,18.5613]
[1647016341373,123.5,80.869,80.788,27.78756503]
[1647016341374,123.5,80.867,80.788,27.78756503]
[1647016341573,74.11,80.862,80.788,27.78756503]
[1647016341773,74.11,80.854,80.775,27.78756503]
[1647016341974,6.186,80.861,80.775,27.78756503]
[1647016341975,123.5,80.847,80.775,27.78756503]
[1647016342274,18.0969,80.878,80.789,2.60496541]
[1647016342275,123.5,80.845,80.789,2.60496541]
[1647016342876,123.5,80.845,80.79,3.04447957]
[1647016343477,45.3747,80.859,80.791,27.78756503]
[1647016343879,45.3747,80.859,80.792,3.04447957]
[1647016344076,6.186,80.912,80.792,3.04447957]
[1647016344277,14.42,80.91,80.8,61.844]
[1647016344576,123.5,80.906,80.8,61.844]
[1647016344780,123.5,80.904,80.811,20.92471341]
[1647016345075,123.5,80.902,80.811,20.92471341]
[1647016345276,123.5,80.9,80.812,3.04447957]
[1647016345480,123.5,80.898,80.82,61.8287]
[1647016345676,123.5,80.896,80.82,61.8287]
[1647016345876,46.81619438,80.893,80.83,18.5497]
[1647016346077,123.5,80.892,80.83,18.5497]
[1647016346280,123.5,80.89,80.83,18.5497]
[1647016346476,123.5,80.888,80.83,18.5497]
[1647016347481,123.5,80.891,80.83,18.5497]
[1647016347681,123.5,80.889,80.821,3.04447957]
[1647016347883,123.5,80.889,80.812,3.04447957]
[1647016348182,123.5,80.887,80.801,3.04447957]
[1647016348381,123.5,80.879,80.801,3.04447957]
[1647016348581,173.27702641,80.877,80.802,25.15679568]
[1647016348784,173.27702641,80.877,80.81,18.5566]
[1647016350983,123.5,80.867,80.781,3.04447957]
[1647016351286,123.5,80.847,80.781,3.04447957]
[1647016351482,123.5,80.847,80.774,18.427]
[1647016351984,123.5,80.845,80.775,23.46427601]
[1647016352183,123.5,80.845,80.78,18.562]
[1647016352384,123.5,80.845,80.781,6.187]
[1647016352785,123.5,80.845,80.772,6.187]
[1647016352986,123.5,80.845,80.782,27.78756503]
[1647016353285,53.96763759,80.846,80.782,27.78756503]
[1647016353286,53.96763759,80.846,80.81,18.5566]
[1647016354185,123.5,80.845,80.783,9.23147957]
[1647016354385,123.5,80.845,80.783,6.187]
[1647016354586,123.5,80.837,80.78,6.187]
[1647016354787,123.5,80.829,80.779,113.0]
[1647016354994,123.5,80.827,80.779,113.0]
[1647016355188,123.5,80.844,80.764,6.187]
[1647016355391,123.5,80.844,80.77,27.78756503]
[1647016355591,45.341,80.845,80.779,3.04447957]
[1647016355789,45.341,80.845,80.78,25.3480265]
[1647016355992,53.96763759,80.846,80.78,53.13559153]
[1647016356189,53.96763759,80.846,80.781,3.04447957]
[1647016356393,53.96763759,80.846,80.782,6.187]
[1647016356588,53.96763759,80.846,80.81,18.5574]
[1647016356788,53.96763759,80.846,80.794,6.99581903]
[1647016356989,53.96763759,80.846,80.795,6.186]
[1647016357192,53.96763759,80.846,80.795,9.23047957]
[1647016357388,53.96763759,80.846,80.796,3.04447957]
[1647016357590,53.96763759,80.846,80.81,18.5571]
[1647016358290,47.3455,80.871,80.811,3.04447957]
[1647016358492,47.3455,80.871,80.812,6.184]
[1647016358690,47.3455,80.871,80.82,18.5517]
[1647016359096,6.184,80.901,80.813,3.04447957]
[1647016359097,65.08435246,80.9,80.822,6.99581903]
[1647016359294,47.6228,80.899,80.823,6.183]
[1647016359694,47.6228,80.899,80.84,18.5449]
[1647016360093,47.6228,80.899,80.841,19.1610265]
[1647016360294,123.5,80.898,80.84,3.04447957]
[1647016360695,47.6228,80.899,80.84,3.04447957]
[1647016360894,47.6228,80.899,80.85,18.5464]
[1647016361298,47.6228,80.899,80.851,3.04447957]
[1647016361994,47.6228,80.899,80.86,18.5426]
[1647016362196,123.5,80.898,80.86,18.5426]
[1647016362394,123.5,80.898,80.838,3.04447957]
[1647016363196,123.5,80.898,80.84,18.5507]
[1647016363794,123.5,80.898,80.841,3.09849556]
[1647016364197,123.5,80.898,80.85,18.548]
[1647016364794,123.5,80.898,80.81,68.0201]
[1647016364999,197.61,80.898,80.81,68.0201]
[1647016365199,123.5,80.889,80.82,18.5548]
[1647016365399,123.5,80.889,80.821,6.183]
[1647016365599,18.5515,80.89,80.821,6.183]
[1647016365800,53.8058,80.899,80.811,3.04447957]
[1647016365801,123.5,80.897,80.822,21.47146552]
[1647016366001,123.5,80.897,80.823,6.183]
[1647016366401,123.5,80.898,80.84,18.5503]
[1647016368203,123.5,80.898,80.841,22.73800188]
[1647016368404,123.5,80.898,80.84,18.5503]
[1647016369408,197.61,80.898,80.831,6.182]
[1647016369606,123.5,80.898,80.815,3.04447957]
[1647016369805,123.5,80.898,80.816,6.183]
[1647016370205,123.5,80.898,80.817,3.04447957]
[1647016370407,123.5,80.898,80.818,31.67678247]
[1647016370608,123.5,80.889,80.82,18.555]
[1647016370808,123.5,80.887,80.821,6.183]
[1647016371006,74.11,80.888,80.805,6.183]
[1647016371007,123.5,80.885,80.805,6.183]
[1647016371207,123.5,80.877,80.752,46.9766]
[1647016371406,123.5,80.877,80.783,3.04447957]
[1647016371610,123.5,80.875,80.784,0.6309304]
[1647016371807,123.5,80.857,80.785,6.185]
[1647016372009,123.5,80.857,80.785,9.22947957]
[1647016372307,123.5,80.857,80.786,3.04447957]
[1647016372509,123.5,80.857,80.787,6.186]
[1647016372708,123.5,80.855,80.8,18.5587]
[1647016373310,123.5,80.847,80.76,61.8781]
[1647016373510,123.5,80.847,80.75,18.8814]
[1647016373738,123.5,80.845,80.753,3.04447957]
[1647016373939,123.5,80.839,80.76,18.5674]
[1647016374140,52.17314793,80.838,80.758,23.16569074]
[1647016374340,52.17314793,80.838,80.781,2.99115479]
[1647016374545,52.17314793,80.838,80.782,6.187]
[1647016374740,52.17314793,80.838,80.782,9.23147957]
[1647016374941,52.17314793,80.838,80.782,3.04447957]
[1647016375145,123.5,80.837,80.783,3.04447957]
[1647016377047,52.17314793,80.838,80.783,3.04447957]
[1647016377441,52.17314793,80.838,80.79,61.8566]
[1647016378045,123.5,80.837,80.783,3.04447957]
[1647016378242,123.5,80.837,80.78,6.187]
[1647016379449,52.17314793,80.838,80.78,6.187]
[1647016379647,52.17314793,80.838,80.784,4.64246242]
[1647016380147,52.17314793,80.838,80.78,6.187]
[1647016380544,52.17314793,80.838,80.78,24.7498]
[1647016380745,52.17314793,80.838,80.78,6.187]
[1647016380949,123.5,80.837,80.78,6.187]
[1647016381546,123.5,80.837,80.78,24.7498]
[1647016383050,123.5,80.837,80.79,18.5616]
[1647016383451,52.17314793,80.838,80.78,6.187]
[1647016383851,123.5,80.837,80.78,6.187]
[1647016384050,123.5,80.837,80.78,24.7511]
[1647016385857,123.5,80.837,80.78,6.187]
[1647016387058,52.17314793,80.838,80.79,18.5617]
[1647016387260,23.582,80.856,80.78,6.187]
[1647016387656,23.582,80.856,80.781,3.04447957]
[1647016387856,23.582,80.856,80.81,18.5576]
[1647016388358,46.27194408,80.855,80.81,18.5576]
[1647016388559,23.582,80.856,80.81,18.5576]
[1647016389459,123.5,80.868,80.81,18.5576]
[1647016389659,173.98575033,80.868,80.81,18.5576]
[1647016389964,123.5,80.867,80.81,18.5576]
[1647016390160,123.5,80.867,80.78,68.0495]
[1647016390365,123.5,80.865,80.78,68.0495]
[1647016390662,123.5,80.865,80.78,6.187]
[1647016390863,123.5,80.857,80.78,6.187]
[1647016391062,123.5,80.847,80.78,6.187]
[1647016391269,123.5,80.847,80.78,24.7517]
[1647016391466,123.5,80.843,80.78,6.187]
[1647016391666,63.19493007,80.848,80.748,18.1694]
[1647016391667,123.5,80.837,80.748,18.1694]
[1647016391867,123.5,80.835,80.746,18.1233]
[1647016392069,123.5,80.829,80.746,18.1233]
[1647016392499,123.5,80.827,80.756,21.88080872]
[1647016392895,123.5,80.827,80.745,3.04447957]
[1647016393093,123.5,80.825,80.736,24.6116]
[1647016393292,123.5,80.825,80.741,25.24398772]
[1647016393895,123.5,80.825,80.742,21.6599935]
[1647016394098,123.5,80.819,80.77,18.5654]
[1647016394493,123.5,80.819,80.75,61.8905]
[1647016395193,123.5,80.819,80.76,18.568]
[1647016395394,123.5,80.819,80.75,61.8905]
[1647016396296,123.5,80.819,80.76,18.5683]
[1647016397100,24.5566,80.826,80.743,3.04447957]
[1647016397501,24.5566,80.826,80.79,18.5622]
[1647016397696,24.5566,80.826,80.743,3.04447957]
[1647016397897,123.5,80.825,80.743,3.04447957]
[1647016398097,123.5,80.819,80.743,3.04447957]
[1647016398699,123.5,80.819,80.76,18.57]
[1647016399297,123.5,80.819,80.743,3.04447957]
[1647016400200,123.5,80.819,80.743,24.79991842]
[1647016400398,123.5,80.819,80.76,18.5686]
[1647016400600,18.5672,80.82,80.76,18.5686]
[1647016400797,18.5672,80.82,80.75,61.8906]
[1647016401403,18.5672,80.82,80.771,3.90140668]
[1647016401598,18.5672,80.82,80.77,18.5663]
[1647016402000,24.5566,80.826,80.744,3.04447957]
[1647016402609,53.6859575,80.828,80.791,19.60968117]
[1647016402805,53.6859575,80.828,80.791,25.06968117]
[1647016403003,123.5,80.858,80.8,61.8519]
[1647016403603,123.5,80.858,80.81,18.5578]
[1647016403804,24.5979,80.859,80.81,18.5578]
[1647016404004,47.72604299,80.858,80.81,18.5578]
[1647016404407,47.72604299,80.858,80.8,61.8519]
[1647016404408,47.72604299,80.858,80.792,3.04447957]
[1647016405009,123.5,80.856,80.782,49.4655]
[1647016405206,123.5,80.854,80.782,49.4655]
[1647016405409,123.5,80.849,80.782,49.4655]
[1647016405605,123.5,80.849,80.8,18.5609]
[1647016407208,6.186,80.857,80.81,18.5588]
[1647016407408,47.72604299,80.858,80.81,18.5588]
[1647016408413,18.5594,80.85,80.8,18.5601]
[1647016408809,123.5,80.849,80.8,18.5601]
[1647016409010,123.5,80.849,80.782,49.4655]
[1647016409210,123.5,80.847,80.782,49.4655]
[1647016409610,123.5,80.839,80.79,18.5617]
[1647016412017,123.5,80.829,80.771,6.187]
[1647016412416,123.5,80.827,80.763,6.188]
[1647016412616,123.5,80.825,80.752,3.04447957]
[1647016412815,123.5,80.823,80.753,6.188]
[1647016413017,123.5,80.817,80.753,6.188]
[1647016413220,123.5,80.817,80.735,6.189]
[1647016413417,129.689,80.817,80.73,18.501]
[1647016413617,129.689,80.817,80.731,6.19]
[1647016414016,129.689,80.817,80.75,18.5724]
[1647016415016,129.689,80.817,80.733,6.189]
[1647016415217,129.689,80.817,80.472,100.47521707]
[1647016415218,123.5,80.809,80.723,18.2506]
[1647016415417,74.11,80.796,80.708,3.04447957]
[1647016415621,123.5,80.787,80.708,3.04447957]
[1647016415826,123.5,80.785,80.708,3.04447957]
[1647016416021,123.5,80.783,80.71,3.04447957]
[1647016416223,123.5,80.783,80.711,6.192]
[1647016416423,123.5,80.779,80.711,6.192]
[1647016416624,123.5,80.779,80.72,18.5771]
[1647016417023,123.5,80.779,80.72,21.62157957]
[1647016417222,74.11,80.778,80.72,21.62157957]
[1647016417427,123.5,80.769,80.71,9.23547957]
[1647016417624,179.51083659,80.768,80.72,3.04447957]
[1647016417922,56.01083659,80.768,80.72,21.62077957]
[1647016418328,6.192,80.794,80.721,6.192]
[1647016418524,6.191,80.809,80.721,31.20276503]
[1647016418756,29.9308,80.819,80.75,18.5698]
[1647016418956,123.5,80.818,80.75,18.5698]
[1647016419161,123.5,80.814,80.75,18.5698]
[1647016419356,123.5,80.812,80.745,8.192273]
[1647016419756,123.5,80.812,80.75,18.5714]
[1647016419960,123.5,80.81,80.75,18.5714]
[1647016421959,23.6147,80.811,80.75,18.5714]
[1647016422260,52.53776655,80.815,80.764,11.79476144]
[1647016422462,52.53776655,80.815,80.751,3.04447957]
[1647016422659,52.53776655,80.815,80.764,3.04447957]
[1647016423062,123.5,80.814,80.748,3.04447957]
[1647016423366,123.5,80.814,80.75,18.5706]
[1647016423763,146.0206,80.814,80.748,3.04447957]
[1647016424164,22.5206,80.814,80.748,3.04447957]
[1647016424563,22.5206,80.814,80.79,18.5629]